fUST/lending_fUST_20250608
["ID","MTS","AMOUNT","RATE_DAILY","PERIOD"]
[364999587,1749388262479,-899.83,0.00023835,4]
[364999588,1749388262501,-440.0,0.00023835,4]
[364999589,1749388262526,-1564.27,0.00023835,4]
[364999590,1749388262544,-1118.41,0.00023835,4]
[364999591,1749388262565,-2508.34367556,0.00023836,2]
[364999592,1749388262589,-166.0,0.00023838,3]
[364999593,1749388262608,-3000.0,0.0002384,2]
[364999594,1749388262626,-505.05556208,0.00023847,3]
[364999595,1749388262646,-166.0,0.00023847,3]
[364999596,1749388262664,-166.0,0.00023847,3]
[364999597,1749388262679,-166.0,0.00023847,3]
[364999598,1749388262696,-3000.0,0.0002385,2]
[364999599,1749388262713,-1162.0,0.0002385,2]
[364999600,1749388262731,-2500.0,0.00023854,2]
[364999601,1749388262749,-3000.0,0.00023854,2]
[364999602,1749388262766,-1162.0,0.00023859,2]
[364999603,1749388262783,-3000.0,0.0002386,2]
[364999604,1749388262799,-3000.0,0.0002387,2]
[364999605,1749388262815,-1162.0,0.00023871,2]
[364999606,1749388262832,-3000.0,0.0002388,2]
[364999607,1749388262849,-3000.0,0.0002389,2]
[364999608,1749388262866,-7254.36,0.00023896,3]
[364999609,1749388262884,-645.27249723,0.000239,2]
[364999610,1749388262896,-692.92,0.000239,60]
[364999611,1749388262906,-3000.0,0.000239,2]
[364999612,1749388262915,-315.11541396,0.000239,3]
[364999613,1749388262926,-3000.0,0.0002391,2]
[364999614,1749388262938,-3000.0,0.0002392,2]
[364999615,1749388262948,-3000.0,0.0002393,2]
[364999616,1749388262959,-800.0,0.00023937,2]
[364999617,1749388262969,-3000.0,0.0002394,2]
[364999618,1749388262980,-7301.82319238,0.00023942,2]
[364999619,1749388262990,-271.54991369,0.00023943,2]
[364999620,1749388263001,-3000.0,0.0002395,2]
[364999621,1749388263011,-3000.0,0.0002396,2]
[364999622,1749388263021,-3000.0,0.0002397,2]
[364999623,1749388263031,-150.0,0.00023973,2]
[364999624,1749388263041,-3000.0,0.0002398,2]
[364999625,1749388263051,-41695.26898024,0.00023988,2]
[364999626,1749388263062,-151.0,0.00023988,7]
[364999627,1749388263073,-177.554204,0.00023988,7]
[364999628,1749388263083,-151.0,0.00023988,7]
[364999629,1749388263094,-151.0,0.00023988,7]
[364999630,1749388263105,-151.0,0.00023988,7]
[364999631,1749388263329,-151.0,0.00023988,7]
[364999632,1749388263349,-3000.0,0.0002399,2]
[364999633,1749388263360,-166.0,0.00023997,3]
[364999634,1749388263370,-9168.38525416,0.00024,60]
[364999635,1749388263380,-1000.0,0.00024,24]
[364999636,1749388263390,-121544.67,0.00024,30]
[364999637,1749388263400,-20002.558338,0.00024,2]
[364999638,1749388263411,-1751.04223638,0.00024,2]
[364999639,1749388263421,-1002.53855513,0.00024,5]
[364999640,1749388263431,-1036.94,0.00024,2]
[364999641,1749388263442,-2000.0,0.00024,2]
[364999642,1749388263452,-5000.0,0.00024,7]
[364999643,1749388263462,-160.0,0.00024,7]
[364999644,1749388263473,-3000.0,0.00024,2]
[364999645,1749388263483,-1460.0,0.00024,7]
[364999646,1749388263493,-151.0,0.00024,7]
[364999647,1749388263503,-151.0,0.00024,7]
[364999648,1749388263515,-151.0,0.00024,7]
[364999649,1749388263525,-255.527654,0.00024,7]
[364999650,1749388263535,-151.0,0.00024,7]
[364999651,1749388263546,-151.0,0.00024,7]
[364999652,1749388263556,-192.438748,0.00024,7]
[364999653,1749388263567,-151.0,0.00024,7]
[364999654,1749388263578,-151.0,0.00024,7]
[364999655,1749388263588,-423.98131849,0.00024,7]
[364999656,1749388263600,-158.29,0.00024,2]
[364999657,1749388263610,-151.0,0.00024,7]
[364999658,1749388263620,-151.0,0.00024,7]
[364999659,1749388263630,-293.599782,0.00024,7]
[364999660,1749388263641,-151.0,0.00024,7]
[364999661,1749388263651,-315.11541396,0.00024,30]
[364999662,1749388263661,-151.0,0.00024,7]
[364999663,1749388263671,-151.0,0.00024,7]
[364999664,1749388263680,-151.0,0.00024,7]
[364999665,1749388263692,-151.0,0.00024,7]
[364999666,1749388263702,-11853.97844947,0.00024,30]
[364999667,1749388263711,-151.0,0.00024,7]
[364999668,1749388263722,-151.0,0.00024,7]
[364999669,1749388263732,-165.38492,0.00024,7]
[364999670,1749388263742,-163.25188,0.00024,7]
[364999671,1749388263753,-151.0,0.00024,7]
[364999672,1749388263763,-151.0,0.00024,7]
[364999673,1749388263773,-680.590552,0.00024,7]
[364999674,1749388263784,-680.590552,0.00024,7]
[364999675,1749388263793,-229.60437222,0.00024,7]
[364999676,1749388263803,-151.0,0.00024,7]
[364999677,1749388263813,-151.0,0.00024,7]
[364999678,1749388263823,-3000.0,0.0002401,2]
[364999679,1749388263833,-800.0,0.00024014,2]
[364999680,1749388263844,-3000.0,0.0002402,2]
[364999681,1749388263854,-3000.0,0.0002403,2]
[364999682,1749388263863,-500.0,0.00024033,2]
[364999683,1749388263874,-3000.0,0.0002404,2]
[364999684,1749388263884,-206.0,0.0002405,2]
[364999685,1749388263894,-3000.0,0.0002405,2]
[364999686,1749388263903,-1162.0,0.00024052,2]
[364999687,1749388263914,-1162.0,0.00024054,2]
[364999688,1749388263923,-3000.0,0.0002406,2]
[364999689,1749388263934,-3000.0,0.0002407,2]
[364999690,1749388263944,-1162.0,0.00024077,2]
[364999691,1749388263954,-3000.0,0.0002408,2]
[364999692,1749388263966,-4453.83,0.00024086,3]
[364999693,1749388263976,-4000.0,0.00024087,2]
[364999694,1749388263986,-3000.0,0.0002409,2]
[364999695,1749388263996,-1162.0,0.00024093,2]
[364999696,1749388264006,-3000.0,0.000241,2]
[364999697,1749388264016,-151.0,0.000241,7]
[364999698,1749388264026,-151.0,0.000241,7]
[364999699,1749388264036,-151.0,0.00024101,7]
[364999700,1749388264045,-298.674796,0.00024101,7]
[364999701,1749388264056,-151.0,0.00024101,7]
[364999702,1749388264065,-151.0,0.00024101,7]
[364999703,1749388264076,-319.877509,0.00024101,7]
[364999704,1749388264085,-319.877509,0.00024101,7]
[364999705,1749388264095,-151.0,0.00024101,7]
[364999706,1749388264104,-7360.60695664,0.00024101,2]
[364999707,1749388264114,-5000.0,0.00024101,2]
[364999708,1749388264124,-5000.0,0.00024101,2]
[364999709,1749388264135,-5000.0,0.00024101,2]
[364999710,1749388264145,-5000.0,0.00024101,2]
[364999711,1749388264155,-440.84,0.00024109,4]
[364999712,1749388264164,-519.49,0.00024109,4]
[364999713,1749388264174,-157.054028,0.00024109,7]
[364999714,1749388264184,-157.054028,0.00024109,7]
[364999715,1749388264193,-151.0,0.00024109,7]
[364999716,1749388264203,-505.23537389,0.00024109,2]
[364999717,1749388264213,-474.27,0.00024109,4]
[364999718,1749388264224,-430.0,0.00024109,4]
[364999719,1749388264234,-1839.52,0.00024109,4]
[364999720,1749388264244,-440.0,0.00024109,4]
[364999721,1749388264255,-574.3,0.00024109,4]
[364999722,1749388264265,-721.65,0.00024109,4]
[364999723,1749388264275,-1486.17,0.00024109,4]
[364999724,1749388264286,-440.0,0.00024109,4]
[364999725,1749388264296,-427.60622184,0.00024109,4]
[364999726,1749388264307,-488.37,0.00024109,4]
[364999727,1749388264317,-700.54,0.00024109,4]
[364999728,1749388264327,-1650.64,0.00024109,4]
[364999729,1749388264337,-2698.08,0.00024109,4]
[364999730,1749388264347,-689.16,0.00024109,4]
[364999731,1749388264357,-3933.64,0.00024109,4]
[364999732,1749388264368,-1002.52,0.00024109,4]
[364999733,1749388264378,-541.33,0.00024109,4]
[364999734,1749388264388,-1500.67,0.00024109,4]
[364999735,1749388264398,-2561.19,0.00024109,4]
[364999736,1749388264407,-2272.7,0.00024109,4]
[364999737,1749388264418,-588.0,0.00024109,2]
[364999738,1749388264428,-588.0,0.00024109,2]
[364999739,1749388264439,-588.0,0.00024109,2]
[364999740,1749388264449,-588.0,0.00024109,2]
[364999741,1749388264458,-588.0,0.00024109,2]
[364999742,1749388264469,-415.14013271,0.00024109,2]
[364999743,1749388264480,-5064.66,0.00024109,4]
[364999744,1749388264491,-750.62,0.00024109,4]
[364999745,1749388264503,-597.14,0.00024109,4]
[364999746,1749388264513,-2854.42,0.00024109,4]
[364999747,1749388264525,-3549.42,0.00024109,4]
[364999748,1749388264535,-5228.29,0.00024109,4]
[364999749,1749388264545,-778.29,0.00024109,2]
[364999750,1749388264555,-956.95,0.00024109,4]
[364999751,1749388264565,-2371.97,0.00024109,4]
[364999752,1749388264575,-3033.26,0.00024109,4]
[364999753,1749388264586,-1266.57,0.00024109,4]
[364999754,1749388264596,-899.83,0.00024109,4]
[364999755,1749388264606,-440.0,0.00024109,4]
[364999756,1749388264617,-1564.27,0.00024109,4]
[364999757,1749388264627,-1118.41,0.00024109,4]
[364999758,1749388264637,-3000.0,0.0002411,2]
[364999759,1749388264647,-353.58104382,0.0002411,7]
[364999760,1749388264656,-3000.0,0.0002412,2]
[364999761,1749388264667,-1162.0,0.00024124,2]
[364999762,1749388264677,-500.0,0.00024129,2]
[364999763,1749388264687,-3000.0,0.0002413,2]
[364999764,1749388264697,-3000.0,0.0002414,2]
[364999765,1749388264707,-3000.0,0.0002415,2]
[364999766,1749388264717,-3000.0,0.0002416,2]
[364999767,1749388264727,-5000.0,0.00024162,3]
[364999768,1749388264737,-800.0,0.00024169,2]
[364999769,1749388264747,-1700.0,0.0002417,2]
[364999770,1749388264757,-3000.0,0.0002417,2]
[364999771,1749388264766,-3000.0,0.0002418,2]
[364999772,1749388264776,-3000.0,0.0002419,2]
[364999773,1749388264787,-1162.0,0.00024193,2]
[364999774,1749388264796,-800.0,0.00024193,2]
[364999775,1749388264805,-3000.0,0.000242,2]
[364999776,1749388264815,-151.420524,0.000242,7]
[364999777,1749388264825,-151.0,0.000242,7]
[364999778,1749388264835,-5000.0,0.00024201,2]
[364999779,1749388264845,-1162.0,0.00024205,2]
[364999780,1749388264856,-3000.0,0.0002421,2]
[364999781,1749388264866,-3000.0,0.0002422,2]
[364999782,1749388264876,-5000.0,0.00024226,2]
[364999783,1749388264886,-5000.0,0.00024226,2]
[364999784,1749388264895,-5000.0,0.00024226,2]
[364999785,1749388264905,-5000.0,0.00024226,2]
[364999786,1749388264915,-5000.0,0.00024226,2]
[364999787,1749388264924,-1162.0,0.00024227,2]
[364999788,1749388264933,-3000.0,0.0002423,2]
[364999789,1749388264943,-618.58741617,0.00024233,2]
[364999790,1749388264952,-7301.82319238,0.00024234,2]
[364999791,1749388264961,-500.0,0.00024235,2]
[364999792,1749388264970,-4051.59022,0.0002424,2]
[364999793,1749388264980,-5000.0,0.00024246,2]
[364999794,1749388264990,-5000.0,0.00024246,2]
[364999795,1749388265001,-5000.0,0.00024246,2]
[364999796,1749388265010,-5000.0,0.00024246,2]
[364999797,1749388265020,-151.0,0.00024247,7]
[364999798,1749388265030,-177.554204,0.00024247,7]
[364999799,1749388265039,-151.0,0.00024247,7]
[364999800,1749388265050,-151.0,0.00024247,7]
[364999801,1749388265059,-701.0,0.0002425,2]
[364999802,1749388265069,-157.461155,0.00024259,10]
[364999803,1749388265078,-1162.0,0.00024272,2]
[364999804,1749388265089,-701.0,0.00024282,2]
[364999805,1749388265099,-151.0,0.00024289,7]
[364999806,1749388265108,-151.0,0.00024289,7]
[364999807,1749388265118,-151.0,0.00024289,7]
[364999808,1749388265128,-151.0,0.00024289,7]
[364999809,1749388265139,-151.0,0.00024289,7]
[364999810,1749388265149,-151.0,0.00024289,7]
[364999811,1749388265159,-10000.0,0.00024289,2]
[364999812,1749388265168,-1000.0,0.000243,2]
[364999813,1749388265178,-6000.0,0.00024322,3]
[364999814,1749388265188,-9000.0,0.00024326,2]
[364999815,1749388265197,-806.16,0.00024329,2]
[364999816,1749388265207,-800.0,0.00024334,2]
[364999817,1749388265218,-638.66530525,0.00024348,2]
[364999818,1749388265227,-1162.0,0.00024354,2]
[364999819,1749388265237,-200.0,0.00024369,2]
[364999820,1749388265248,-72072.44925397,0.0002437,2]
[364999821,1749388265258,-1162.0,0.00024382,2]
[364999822,1749388265267,-151.0,0.00024383,7]
[364999823,1749388265277,-153.73147,0.00024383,7]
[364999824,1749388265286,-151.0,0.00024383,7]
[364999825,1749388265296,-152.907584,0.00024383,7]
[364999826,1749388265305,-440.84,0.00024383,4]
[364999827,1749388265315,-519.49,0.00024383,4]
[364999828,1749388265324,-151.0,0.00024383,7]
[364999829,1749388265334,-151.0,0.00024383,7]
[364999830,1749388265343,-151.0,0.00024383,7]
[364999831,1749388265354,-500.0,0.00024383,9]
[364999832,1749388265363,-151.0,0.00024383,7]
[364999833,1749388265373,-1839.52,0.00024383,4]
[364999834,1749388265383,-440.0,0.00024383,4]
[364999835,1749388265393,-574.3,0.00024383,4]
[364999836,1749388265402,-721.65,0.00024383,4]
[364999837,1749388265412,-1486.17,0.00024383,4]
[364999838,1749388265421,-151.0,0.00024383,7]
[364999839,1749388265431,-440.0,0.00024383,4]
[364999840,1749388265442,-488.37,0.00024383,4]
[364999841,1749388265540,-700.54,0.00024383,4]
[364999842,1749388265568,-1650.64,0.00024383,4]
[364999843,1749388265578,-2698.08,0.00024383,4]
[364999844,1749388265589,-689.16,0.00024383,4]
[364999845,1749388265599,-151.0,0.00024383,7]
[364999846,1749388265608,-3933.64,0.00024383,4]
[364999847,1749388265618,-1002.52,0.00024383,4]
[364999848,1749388265628,-541.33,0.00024383,4]
[364999849,1749388265638,-272.608033,0.00024383,7]
[364999850,1749388265647,-1500.67,0.00024383,4]
[364999851,1749388265657,-2561.19,0.00024383,4]
[364999852,1749388265667,-2272.7,0.00024383,4]
[364999853,1749388265678,-5064.66,0.00024383,4]
[364999854,1749388265688,-750.62,0.00024383,4]
[364999855,1749388265698,-597.14,0.00024383,4]
[364999856,1749388265707,-2854.42,0.00024383,4]
[364999857,1749388265717,-3549.42,0.00024383,4]
[364999858,1749388265727,-5228.29,0.00024383,4]
[364999859,1749388265736,-778.29,0.00024383,2]
[364999860,1749388265746,-680.590552,0.00024383,7]
[364999861,1749388265756,-680.590552,0.00024383,7]
[364999862,1749388265766,-956.95,0.00024383,4]
[364999863,1749388265775,-2371.97,0.00024383,4]
[364999864,1749388265786,-151.0,0.00024383,7]
[364999865,1749388265796,-3033.26,0.00024383,4]
[364999866,1749388265807,-1266.57,0.00024383,4]
[364999867,1749388265819,-899.83,0.00024383,4]
[364999868,1749388265829,-440.0,0.00024383,4]
[364999869,1749388265840,-1564.27,0.00024383,4]
[364999870,1749388265850,-151.0,0.00024383,7]
[364999871,1749388265861,-1118.41,0.00024383,4]
[364999872,1749388265871,-206.0,0.0002439,2]
[364999873,1749388265881,-8000.0,0.00024398,3]
[364999874,1749388265891,-265.491957,0.00024398,7]
[364999875,1749388265902,-151.0,0.00024398,7]
[364999876,1749388265914,-151.0,0.00024398,7]
[364999877,1749388265923,-48336.04253764,0.000244,2]
[364999878,1749388265934,-15609.78476819,0.000244,2]
[364999879,1749388265944,-2000.0,0.000244,2]
[364999880,1749388265954,-206.0,0.000244,2]
[364999881,1749388265963,-151.0,0.000244,7]
[364999882,1749388265973,-151.0,0.000244,7]
[364999883,1749388265982,-151.0,0.000244,7]
[364999884,1749388265992,-152.080715,0.000244,7]
[364999885,1749388266003,-151.0,0.000244,7]
[364999886,1749388266012,-151.0,0.000244,7]
[364999887,1749388266022,-151.0,0.000244,7]
[364999888,1749388266032,-319.877509,0.000244,7]
[364999889,1749388266041,-319.877509,0.000244,7]
[364999890,1749388266051,-151.0,0.000244,7]
[364999891,1749388266061,-157.054028,0.000244,7]
[364999892,1749388266071,-157.054028,0.000244,7]
[364999893,1749388266081,-151.0,0.000244,7]
[364999894,1749388266092,-151.0,0.000244,7]
[364999895,1749388266102,-177.554204,0.000244,7]
[364999896,1749388266112,-178.75468,0.000244,7]
[364999897,1749388266122,-151.0,0.000244,7]
[364999898,1749388266132,-151.0,0.000244,7]
[364999899,1749388266142,-151.0,0.000244,7]
[364999900,1749388266153,-151.0,0.000244,7]
[364999901,1749388266162,-151.0,0.000244,7]
[364999902,1749388266171,-151.0,0.000244,7]
[364999903,1749388266182,-151.0,0.000244,7]
[364999904,1749388266191,-151.0,0.000244,7]
[364999905,1749388266201,-315.11541396,0.000244,3]
[364999906,1749388266210,-151.0,0.000244,7]
[364999907,1749388266220,-151.0,0.000244,7]
[364999908,1749388266231,-151.0,0.000244,7]
[364999909,1749388266241,-151.0,0.000244,7]
[364999910,1749388266251,-151.0,0.000244,7]
[364999911,1749388266260,-275.078043,0.000244,7]
[364999912,1749388266270,-151.0,0.000244,7]
[364999913,1749388266280,-680.590552,0.000244,7]
[364999914,1749388266290,-680.590552,0.000244,7]
[364999915,1749388266300,-151.0,0.000244,7]
[364999916,1749388266309,-631889.34579893,0.000244,11]
[364999917,1749388266319,-526698.01358824,0.000244,15]
[364999918,1749388266338,-5951.08891974,0.000244,15]
[364999919,1749388266575,-273.2477065,0.00019178,2]
[364999920,1749388266588,-166.7522935,0.00019178,2]
[364999921,1749388266599,-568.53,0.00019178,2]
[364999922,1749388266610,-324.17728509,0.00019452,2]
[364999923,1749388266622,-115.82271491,0.00019452,2]
[364999924,1749388266632,-384.88504605,0.00019726,2]
[364999925,1749388267104,-203.91078164,0.00018254,2]
[364999926,1749388267113,-188.10159536,0.00019178,2]
[364999927,1749388619763,186.0,0.00025479,120]
[364999936,1749389332935,159.616748,0.00013699,2]
[364999952,1749389432344,-187.399233,0.00018031,2]
[364999954,1749389432355,-300.0,0.00018175,2]
[364999956,1749389432367,-300.0,0.00018175,2]
[364999958,1749389432379,-433.0,0.00018175,2]
[364999961,1749389432389,-5334.83224567,0.00018176,2]
[364999964,1749389432402,-10984.03012613,0.00018176,2]
[364999965,1749389432423,-8581.1376282,0.00018176,2]
[364999966,1749389432434,-4097.9296522,0.00018291,2]
[364999967,1749389432444,-387.29456602,0.00018887,2]
[364999968,1749389432455,-181.39076592,0.00019078,2]
[364999969,1749389432465,-865.38,0.00019168,3]
[364999970,1749389432474,-428.71001252,0.00019171,2]
[364999971,1749389432485,-40723.65239579,0.00019172,2]
[364999972,1749389432560,-541.06188817,0.00019171,2]
[364999973,1749389432571,-541.06188817,0.00019171,2]
[364999974,1749389432582,-2281.85457055,0.00019172,2]
[364999975,1749389432593,-822.51668041,0.00019172,2]
[364999976,1749389432645,-541.06188817,0.00019171,2]
[364999977,1749389432656,-73.03310227,0.00019171,2]
[364999978,1749389432668,-468.0287859,0.00019171,2]
[364999980,1749389432677,-20.0981894,0.00019171,2]
[364999981,1749389432689,-314.54692683,0.00019171,2]
[364999982,1749389432707,-206.41677194,0.00019171,2]
[364999983,1749389432723,-541.06188817,0.00019171,2]
[364999984,1749389432739,-3452.02133489,0.00019172,2]
[364999985,1749389432757,-251.43068583,0.00019172,2]
[364999986,1749389432768,-107.91303497,0.00019173,2]
[365000017,1749389438220,-541.06188817,0.00019171,2]
[365000018,1749389438234,-541.06188817,0.00019171,2]
[365000019,1749389438247,-541.06188817,0.00019171,2]
[365000020,1749389438259,-541.06188817,0.00019171,2]
[365000021,1749389438271,-541.06188817,0.00019171,2]
[365000022,1749389438283,-541.06188817,0.00019171,2]
[365000023,1749389438295,-541.06188817,0.00019171,2]
[365000024,1749389438308,-541.06188817,0.00019171,2]
[365000025,1749389438320,-541.06188817,0.00019171,2]
[365000026,1749389438331,-541.06188817,0.00019171,2]
[365000027,1749389438344,-541.06188817,0.00019171,2]
[365000028,1749389438357,-541.06188817,0.00019171,2]
[365000029,1749389438369,-392.08696503,0.00019173,2]
[365000030,1749389438383,-510.48768727,0.00019173,2]
[365000031,1749389438395,-500.0,0.00019173,2]
[365000032,1749389438407,-621.64775201,0.00019173,2]
[365000033,1749389438419,-160.0,0.00019177,2]
[365000034,1749389438432,-440.0,0.00019178,2]
[365000035,1749389438444,-440.0,0.00019178,2]
[365000036,1749389438456,-440.0,0.00019178,2]
[365000037,1749389438468,-223.71778218,0.00019178,2]
[365000038,1749389438480,-431.1523617,0.00019178,2]
[365000039,1749389438492,-440.0,0.00019178,2]
[365000040,1749389438504,-440.0,0.00019178,2]
[365000041,1749389438516,-354.25513656,0.00019178,2]
[365000042,1749389438528,-440.0,0.00019178,2]
[365000043,1749389438541,-440.0,0.00019178,2]
[365000044,1749389438553,-440.0,0.00019178,2]
[365000045,1749389438565,-440.0,0.00019178,2]
[365000046,1749389438577,-440.0,0.00019178,2]
[365000047,1749389438589,-440.0,0.00019178,2]
[365000048,1749389438601,-173.65366645,0.00019178,2]
[365000049,1749389438614,-440.0,0.00019178,2]
[365000050,1749389438627,-440.0,0.00019178,2]
[365000051,1749389438640,-440.0,0.00019178,2]
[365000052,1749389438652,-440.0,0.00019178,2]
[365000053,1749389438665,-440.0,0.00019178,2]
[365000054,1749389438677,-271.71426457,0.00019178,2]
[365000055,1749389438691,-440.0,0.00019178,2]
[365000056,1749389438701,-440.0,0.00019178,2]
[365000057,1749389438712,-440.0,0.00019178,2]
[365000058,1749389438723,-437.11489043,0.00019178,2]
[365000059,1749389438732,-440.0,0.00019178,2]
[365000060,1749389438742,-440.0,0.00019178,2]
[365000061,1749389438752,-440.0,0.00019178,2]
[365000062,1749389438763,-440.0,0.00019178,2]
[365000063,1749389438933,-431.05433408,0.00019178,2]
[365000064,1749389438956,-440.0,0.00019178,2]
[365000065,1749389438966,-440.0,0.00019178,2]
[365000066,1749389438976,-430.0,0.00019178,2]
[365000067,1749389438986,-440.0,0.00019178,2]
[365000068,1749389438995,-430.0,0.00019178,2]
[365000069,1749389439004,-430.0,0.00019178,2]
[365000070,1749389439014,-433.59657547,0.00019178,2]
[365000071,1749389439026,-446.41072766,0.00019178,2]
[365000072,1749389439036,-440.0,0.00019178,2]
[365000073,1749389439046,-440.0,0.00019178,2]
[365000074,1749389439055,-440.0,0.00019178,2]
[365000075,1749389439066,-440.0,0.00019178,2]
[365000076,1749389439076,-440.0,0.00019178,2]
[365000077,1749389439086,-443.04863108,0.00019178,2]
[365000078,1749389439097,-440.0,0.00019178,2]
[365000079,1749389439107,-440.0,0.00019178,2]
[365000080,1749389439117,-440.0,0.00019178,2]
[365000081,1749389439126,-410.82373277,0.00019178,2]
[365000082,1749389439136,-440.0,0.00019178,2]
[365000083,1749389439145,-440.0,0.00019178,2]
[365000084,1749389439155,-353.43177733,0.00019178,2]
[365000085,1749389439165,-440.0,0.00019178,2]
[365000086,1749389439174,-440.0,0.00019178,2]
[365000087,1749389439184,-440.0,0.00019178,2]
[365000088,1749389439194,-440.0,0.00019178,2]
[365000089,1749389439203,-420.0,0.00019178,2]
[365000090,1749389439213,-300.0,0.00019178,2]
[365000091,1749389439223,-440.0,0.00019178,2]
[365000092,1749389439234,-440.0,0.00019178,2]
[365000093,1749389439244,-440.0,0.00019178,2]
[365000094,1749389439255,-227.42402223,0.00019178,2]
[365000095,1749389439265,-440.0,0.00019178,2]
[365000096,1749389439274,-430.60305805,0.00019178,2]
[365000097,1749389439284,-581.39860187,0.00019178,2]
[365000098,1749389439293,-401.77808143,0.00019178,2]
[365000099,1749389439303,-431.55264364,0.00019178,2]
[365000100,1749389439314,-440.0,0.00019178,2]
[365000101,1749389439323,-440.0,0.00019178,2]
[365000102,1749389439334,-440.0,0.00019178,2]
[365000103,1749389439345,-452.72345084,0.00019178,2]
[365000104,1749389439355,-440.0,0.00019178,2]
[365000105,1749389439365,-440.0,0.00019178,2]
[365000106,1749389439375,-440.0,0.00019178,2]
[365000107,1749389439384,-440.0,0.00019178,2]
[365000108,1749389439394,-440.0,0.00019178,2]
[365000109,1749389439404,-440.0,0.00019178,2]
[365000110,1749389439414,-432.80066593,0.00019178,2]
[365000111,1749389439424,-440.0,0.00019178,2]
[365000112,1749389439434,-431.18877843,0.00019178,2]
[365000113,1749389439443,-440.0,0.00019178,2]
[365000114,1749389439453,-400.0,0.00019178,2]
[365000115,1749389439463,-440.0,0.00019178,2]
[365000116,1749389439472,-440.0,0.00019178,2]
[365000117,1749389439482,-440.0,0.00019178,2]
[365000118,1749389439492,-440.0,0.00019178,2]
[365000119,1749389439502,-440.0,0.00019178,2]
[365000120,1749389439511,-440.0,0.00019178,2]
[365000121,1749389439521,-440.0,0.00019178,2]
[365000122,1749389439531,-433.91234916,0.00019178,2]
[365000123,1749389439541,-440.0,0.00019178,2]
[365000124,1749389439551,-440.0,0.00019178,2]
[365000125,1749389439561,-440.0,0.00019178,2]
[365000126,1749389439570,-440.0,0.00019178,2]
[365000127,1749389439580,-434.07887261,0.00019178,2]
[365000128,1749389439589,-440.0,0.00019178,2]
[365000129,1749389439599,-440.0,0.00019178,2]
[365000130,1749389439609,-432.60842759,0.00019178,2]
[365000131,1749389439619,-500.0,0.00019178,2]
[365000132,1749389439630,-500.0,0.00019178,2]
[365000133,1749389439641,-500.0,0.00019178,2]
[365000134,1749389439650,-500.0,0.00019178,2]
[365000135,1749389439660,-500.0,0.00019178,2]
[365000136,1749389439670,-500.0,0.00019178,2]
[365000137,1749389439679,-430.0,0.00019178,2]
[365000138,1749389439689,-500.0,0.00019178,2]
[365000139,1749389439698,-500.0,0.00019178,2]
[365000140,1749389439708,-500.0,0.00019178,2]
[365000141,1749389439718,-222.24,0.00019178,2]
[365000142,1749389439727,-440.0,0.00019178,2]
[365000143,1749389439737,-440.0,0.00019178,2]
[365000144,1749389439747,-440.0,0.00019178,2]
[365000145,1749389439757,-440.0,0.00019178,2]
[365000146,1749389439766,-500.0,0.00019178,2]
[365000147,1749389439776,-500.0,0.00019178,2]